bitfinex/quotes_SOLUSD_20240909
["timestamp","ask_amount","ask_price","bid_price","bid_amount"]
[1725862724822,45.0,128.37,128.31,13.50873806]
[1725862724985,45.0,128.38,128.31,13.50873806]
[1725862728105,45.0,128.39,128.31,13.50873806]
[1725862732209,45.0,128.4,128.31,13.50873806]
[1725862733837,45.0,128.4,128.32,15.0981]
[1725862734116,39.33807105,128.44,128.34,15.0791]
[1725862735596,20.0,128.43,128.34,15.0791]
[1725862736330,45.0,128.42,128.34,15.0791]
[1725862739735,45.0,128.42,128.35,6.5041]
[1725862745731,20.0,128.43,128.35,13.51983806]
[1725862745932,17.79387105,128.44,128.36,15.6966]
[1725862747339,51.2291,128.43,128.36,15.6966]
[1725862747744,6.2297,128.42,128.36,15.6966]
[1725862748035,51.2301,128.41,128.36,15.6966]
[1725862748414,6.2313,128.39,128.36,15.6966]
[1725862748631,45.0,128.38,128.33,15.7151]
[1725862748840,95.0,128.41,128.33,15.7151]
[1725862749017,6.2315,128.38,128.33,15.7151]
[1725862749323,45.0,128.37,128.33,15.7151]
[1725862754738,51.232,128.37,128.33,15.7151]
[1725862755733,51.232,128.37,128.3,16.2951]
[1725862760355,45.0,128.37,128.3,16.2951]
[1725862775567,51.232,128.37,128.3,16.2951]
[1725862775761,45.0,128.37,128.3,16.2951]
[1725862775936,45.0,128.36,128.3,16.2951]
[1725862776141,45.0,128.38,128.3,16.2951]
[1725862776354,28.3079,128.39,128.3,16.2951]
[1725862776572,20.0,128.38,128.3,16.2951]
[1725862777737,54.28445969,128.37,128.27,16.5116]
[1725862777937,20.0,128.36,128.27,16.5116]
[1725862778143,51.2333,128.35,128.27,16.5116]
[1725862781263,6.2334,128.34,128.27,16.5116]
[1725862781572,51.2339,128.33,128.27,16.5116]
[1725862782869,6.2344,128.32,128.27,16.5116]
[1725862783046,65.0,128.31,128.23,15.4941]
[1725862783242,20.0,128.31,128.23,15.4941]
[1725862783469,45.0,128.3,128.23,15.4941]
[1725862785178,26.2349,128.31,128.23,15.4941]
[1725862785179,20.0,128.31,128.23,15.4941]
[1725862785479,6.2343,128.33,128.23,15.4941]
[1725862785651,26.2344,128.32,128.23,15.4941]
[1725862786473,45.0,128.31,128.23,15.4941]
[1725862788284,51.2349,128.31,128.23,15.4941]
[1725862788463,45.0,128.31,128.23,15.4941]
[1725862790962,45.0,128.31,128.24,7.01573806]
[1725862793180,45.0,128.31,128.25,16.202]
[1725862793365,45.0,128.31,128.26,6.049]
[1725862797177,45.0,128.32,128.26,6.049]
[1725862797476,51.2345,128.32,128.25,16.202]
[1725862800361,26.235,128.31,128.25,16.202]
[1725862800563,45.0,128.3,128.25,16.202]
[1725862808992,51.2354,128.3,128.25,16.202]
[1725862810083,45.0,128.3,128.25,16.202]
[1725862811189,45.0,128.3,128.23,6.4806]
[1725862811370,6.2364,128.28,128.23,6.4806]
[1725862811581,45.0,128.27,128.23,6.4806]
[1725862814064,45.0,128.28,128.23,6.4806]
[1725862815380,26.2352,128.31,128.23,6.4806]
[1725862816506,20.0,128.31,128.24,16.2198]
[1725862817809,6.2325,128.36,128.27,6.0526]
[1725862818109,6.2325,128.36,128.27,13.06833806]
[1725862819385,45.0,128.35,128.27,13.06833806]
[1725862823891,28.85878042,128.38,128.28,15.1245]
[1725862824091,20.0,128.37,128.28,15.1245]
[1725862824413,20.0,128.37,128.29,7.01573806]
[1725862824591,20.0,128.37,128.3,15.1245]
[1725862824791,20.0,128.37,128.31,6.405]
[1725862825104,51.33668039,128.4,128.31,13.42073806]
[1725862825292,6.2305,128.4,128.31,13.42073806]
[1725862826295,20.0,128.39,128.31,13.42073806]
[1725862827014,45.0,128.38,128.31,13.42073806]
[1725862828198,45.0,128.38,128.32,16.6187]
[1725862830898,45.0,128.38,128.33,7.01573806]
[1725862831111,45.0,128.38,128.34,15.8304]
[1725862841226,45.0,128.38,128.35,6.2534]
[1725862848825,22.23364231,128.46,128.37,7.01573806]
[1725862849133,27.10665388,128.46,128.37,7.01573806]
[1725862849532,20.87895388,128.46,128.37,7.01573806]
[1725862850613,20.0,128.45,128.37,7.01573806]
[1725862851320,45.0,128.44,128.37,7.01573806]
[1725862863458,45.0,128.44,128.36,15.278]
[1725862863644,20.0,128.43,128.36,15.278]
[1725862863841,45.0,128.42,128.36,15.278]
[1725862864038,51.2296,128.42,128.36,15.278]
[1725862868255,6.2302,128.41,128.36,15.278]
[1725862868447,45.0,128.4,128.36,15.278]
[1725862868833,45.0,128.41,128.36,15.278]
[1725862869862,51.23,128.41,128.36,15.278]
[1725862870361,51.23,128.41,128.31,22.842]
[1725862870362,6.2306,128.4,128.31,22.842]
[1725862870560,45.0,128.39,128.31,22.842]
[1725862870941,6.2322,128.37,128.31,22.842]
[1725862871142,45.0,128.39,128.31,22.842]
[1725862871143,71.2329,128.36,128.31,16.2101]
[1725862871349,51.2329,128.35,128.28,15.2057]
[1725862871555,20.0,128.34,128.28,15.2057]
[1725862871762,45.0,128.33,128.28,15.2057]
[1725862872761,20.0,128.32,128.28,15.2057]
[1725862872943,45.0,128.31,128.28,15.2057]
[1725862873668,45.0,128.31,128.25,15.7437]
[1725862874340,20.0,128.3,128.25,15.7437]
[1725862874742,45.0,128.29,128.25,15.7437]
[1725862878955,45.0,128.29,128.23,6.4263]
[1725862901779,45.0,128.29,128.22,22.12383806]
[1725862903769,45.0,128.29,128.24,7.01573806]
[1725862905261,22.0029,128.32,128.24,8.57485575]
[1725862905676,22.0029,128.32,128.24,7.01573806]
[1725862906464,45.0,128.31,128.24,7.01573806]
[1725862906859,45.0,128.31,128.22,15.1081]
[1725862907066,45.0,128.31,128.24,7.01573806]
[1725862910563,45.0,128.31,128.23,20.0]
[1725862911766,45.0,128.31,128.24,7.01573806]
[1725862915388,45.0,128.31,128.23,27.01573806]
[1725862915882,45.0,128.31,128.23,7.01573806]
[1725862915883,20.0,128.3,128.23,7.01573806]
[1725862916073,45.0,128.29,128.23,7.01573806]
[1725862917802,45.0,128.29,128.19,16.0267]
[1725862918094,45.0,128.29,128.2,27.01573806]
[1725862918885,51.2358,128.29,128.2,27.01573806]
[1725862919070,22.4742,128.28,128.2,27.01573806]
[1725862919384,45.0,128.27,128.2,27.01573806]
[1725862920270,45.0,128.27,128.22,7.01573806]
[1725862920490,22.4742,128.28,128.22,7.01573806]
[1725862920694,20.0,128.3,128.24,7.01573806]
[1725862920993,20.0,128.3,128.22,7.01573806]
[1725862922396,45.0,128.29,128.22,7.01573806]
[1725862923099,65.67439844,128.29,128.22,7.01573806]
[1725862925081,65.67439844,128.29,128.2,20.0]
[1725862925280,65.67439844,128.29,128.21,7.01573806]
[1725862925497,19.98008916,128.28,128.21,7.01573806]
[1725862925671,45.0,128.27,128.21,7.01573806]
[1725862925878,45.0,128.27,128.2,20.0]
[1725862926590,71.04524613,128.28,128.2,20.0]
[1725862927700,71.04524613,128.28,128.21,7.01573806]
[1725862931885,71.04524613,128.28,128.2,27.01573806]
[1725862932086,71.04524613,128.28,128.2,28.57530921]
[1725862932395,71.04524613,128.28,128.2,27.01573806]
[1725862934514,71.04524613,128.28,128.2,20.0]
[1725862934683,51.0464,128.28,128.2,20.0]
[1725862934888,51.0464,128.28,128.2,27.01573806]
[1725862935600,51.0464,128.28,128.2,20.0]
[1725862935791,51.0464,128.28,128.2,27.01573806]
[1725862937286,18.90025546,128.27,128.2,27.01573806]
[1725862937606,45.0,128.26,128.2,27.01573806]
[1725862938684,45.0,128.27,128.2,27.01573806]
[1725862940394,45.0,128.27,128.22,7.01573806]
[1725862941700,61.5581,128.27,128.19,16.0267]
[1725862942001,20.0,128.26,128.17,6.3893]
[1725862942210,45.0,128.25,128.17,6.3893]
[1725862942886,45.0,128.25,128.16,15.9732086]
[1725862943086,16.5765,128.23,128.16,0.8377086]
[1725862943287,45.0,128.22,128.16,0.8377086]
[1725862947983,45.0,128.22,128.16,7.85344666]
[1725862952906,16.5765,128.23,128.16,7.85344666]
[1725862953507,16.5765,128.23,128.16,0.8377086]
[1725862954422,45.0,128.22,128.16,0.8377086]
[1725862961524,45.0,128.22,128.17,22.34693806]
[1725862961722,45.0,128.23,128.17,22.34693806]
[1725862967325,45.0,128.23,128.19,7.01573806]
[1725862967508,15.5901,128.27,128.19,7.01573806]
[1725862967721,15.5901,128.27,128.21,7.01573806]
[1725862968027,25.22643927,128.28,128.21,7.01573806]
[1725862968608,18.86913927,128.28,128.21,23.26803806]
[1725862969323,18.86913927,128.28,128.21,29.58123806]
[1725862969513,16.421,128.3,128.21,29.58123806]
[1725862970307,20.0,128.29,128.21,29.58123806]
[1725862970806,45.0,128.28,128.21,29.58123806]
[1725862983038,45.0,128.27,128.23,7.01573806]
[1725862983225,45.0,128.29,128.23,7.01573806]
[1725862984441,45.0,128.29,128.21,22.5655]
[1725862990754,6.2776,128.31,128.22,7.01573806]
[1725862990967,20.0,128.3,128.22,7.01573806]
[1725862992131,45.0,128.29,128.22,7.01573806]
[1725862999638,45.0,128.29,128.25,15.2519]
[1725862999835,15.8998,128.33,128.25,15.2519]
[1725863000158,20.0,128.32,128.25,15.2519]
[1725863001262,45.0,128.31,128.25,15.2519]
[1725863004753,45.0,128.31,128.25,21.4992]
[1725863008148,19.0852201,128.35,128.26,7.01573806]
[1725863008348,20.0,128.34,128.26,7.01573806]
[1725863008551,19.0852201,128.35,128.26,7.01573806]
[1725863009472,45.0,128.34,128.26,7.01573806]
[1725863013977,45.0,128.34,128.27,16.5793]
[1725863017299,45.0,128.34,128.28,7.01573806]
[1725863018789,19.0852201,128.35,128.3,22.87263806]
[1725863020283,19.0852201,128.35,128.3,15.8569]
[1725863020480,45.0,128.34,128.3,15.8569]
[1725863021412,45.0,128.34,128.27,16.0087]
[1725863021606,26.2343,128.33,128.27,16.0087]
[1725863021786,45.0,128.32,128.27,16.0087]
[1725863024108,51.2344,128.32,128.27,16.0087]
[1725863024314,20.0,128.31,128.27,16.0087]
[1725863024612,45.0,128.3,128.27,16.0087]
[1725863028889,45.0,128.3,128.24,15.4312]
[1725863037409,20.0,128.31,128.24,22.44693806]
[1725863037614,20.0,128.3,128.24,22.44693806]
[1725863037922,20.0,128.32,128.24,22.44693806]
[1725863039727,45.0,128.31,128.24,22.44693806]
[1725863039920,20.0,128.3,128.24,22.44693806]
[1725863040221,45.0,128.29,128.24,22.44693806]
[1725863048304,45.0,128.29,128.24,15.4312]
[1725863059334,45.0,128.29,128.25,7.01573806]
[1725863062835,28.64067182,128.33,128.25,7.01573806]
[1725863064547,45.0,128.32,128.25,7.01573806]
[1725863069640,45.0,128.32,128.27,13.13063806]
[1725863076649,34.51508318,128.37,128.29,7.01573806]
[1725863076946,86.0006716,128.41,128.32,15.0558]
[1725863077443,33.78633315,128.4,128.32,15.0558]
[1725863077855,6.231,128.39,128.32,15.0558]
[1725863078225,45.0,128.38,128.32,15.0558]
[1725863079648,51.2315,128.38,128.32,15.0558]
[1725863079846,45.0,128.38,128.32,15.0558]
[1725863080052,50.66487806,128.37,128.28,16.5838]
[1725863080260,45.0,128.36,128.28,16.5838]
[1725863080426,20.0,128.35,128.28,16.5838]
[1725863080726,6.2341,128.33,128.28,16.5838]
[1725863080924,65.0,128.32,128.28,16.5838]
[1725863091173,20.0,128.32,128.28,16.5838]
[1725863091484,26.2331,128.35,128.28,16.5838]
[1725863091859,20.0,128.35,128.28,16.5838]
[1725863093352,45.0,128.34,128.28,16.5838]
[1725863101958,20.0,128.35,128.29,6.1811]
[1725863102154,20.0,128.36,128.29,6.1811]
[1725863103365,45.0,128.35,128.29,6.1811]
[1725863106483,45.0,128.35,128.29,6.15647275]
[1725863107587,45.0,128.35,128.3,15.7909]
[1725863111081,20.0,128.36,128.3,15.7909]
[1725863111294,20.0,128.38,128.3,15.7909]
[1725863112171,48.88105477,128.39,128.31,29.17883806]
[1725863112371,33.53925292,128.39,128.33,7.01573806]
[1725863112571,33.53925292,128.39,128.35,6.2908]
[1725863116303,45.0,128.38,128.35,6.2908]
[1725863116616,45.0,128.38,128.34,15.8723]
[1725863119879,45.0,128.38,128.32,6.1934]
[1725863120081,26.2321,128.37,128.31,15.3649]
[1725863120392,51.2325,128.36,128.31,15.3649]
[1725863121185,45.0,128.36,128.31,15.3649]
[1725863125611,6.2306,128.4,128.31,22.38063806]
[1725863126910,45.0,128.39,128.31,22.38063806]
[1725863130813,45.0,128.4,128.31,22.38063806]
[1725863131015,20.0,128.39,128.31,22.38063806]
[1725863131217,45.0,128.38,128.31,22.38063806]
[1725863131617,32.96818239,128.41,128.33,7.01573806]
[1725863132520,32.96818239,128.41,128.34,22.541]
[1725863133401,6.2291,128.43,128.34,22.541]
[1725863133619,20.0,128.42,128.34,22.541]
[1725863133804,45.0,128.41,128.34,22.541]
[1725863134417,29.88750104,128.44,128.35,7.01573806]
[1725863134721,20.0,128.43,128.36,15.7031]
[1725863135930,45.0,128.42,128.36,15.7031]
[1725863138814,45.0,128.43,128.36,15.7031]
[1725863141423,45.0,128.43,128.37,13.29123806]
[1725863141614,45.0,128.43,128.38,16.2132]
[1725863142016,26.86313636,128.47,128.38,16.2132]
[1725863142322,20.0,128.46,128.38,16.2132]
[1725863142701,20.0,128.46,128.39,7.01573806]
[1725863142920,26.86313636,128.47,128.39,7.01573806]
[1725863144308,26.86313636,128.47,128.4,22.8372]
[1725863145119,26.86313636,128.47,128.41,7.01573806]
[1725863145511,26.86313636,128.47,128.43,7.01573806]
[1725863145712,26.86313636,128.47,128.45,6.4481]
[1725863146231,26.86313636,128.47,128.46,16.5715]
[1725863146541,6.2238,128.54,128.46,16.5715]
[1725863147613,45.0,128.53,128.46,16.5715]
[1725863148111,20.0,128.52,128.46,16.5715]
[1725863148314,45.0,128.51,128.46,16.5715]
[1725863157638,45.0,128.51,128.47,7.01573806]
[1725863160330,45.0,128.51,128.46,16.5715]
[1725863163848,45.0,128.52,128.46,16.5715]
[1725863167349,51.2249,128.52,128.46,16.5715]
[1725863172652,21.2486186,128.55,128.46,16.5715]
[1725863172858,20.0,128.54,128.46,16.5715]
[1725863174047,51.2242,128.53,128.46,16.5715]
[1725863174357,20.0,128.52,128.46,16.5715]
[1725863174552,45.0,128.51,128.46,16.5715]
[1725863175146,6.2238,128.54,128.46,16.5715]
[1725863175349,20.0,128.53,128.46,16.5715]
[1725863176452,45.0,128.52,128.46,16.5715]
[1725863178858,45.0,128.52,128.47,7.01573806]
[1725863179037,24.25487488,128.56,128.47,7.01573806]
[1725863179247,20.0,128.55,128.49,6.0566]
[1725863179644,18.03207488,128.56,128.5,1.55632141]
[1725863179956,6.2217,128.59,128.51,16.4132]
[1725863181261,26.2221,128.58,128.51,16.4132]
[1725863181858,45.0,128.57,128.51,16.4132]
[1725863184756,51.2222,128.57,128.51,16.4132]
[1725863186267,20.0,128.58,128.51,16.4132]
[1725863187737,45.0,128.57,128.51,16.4132]
[1725863200767,35.705343,128.57,128.51,16.4132]
[1725863202154,41.927543,128.57,128.51,16.4132]
[1725863203695,6.2228,128.56,128.51,16.4132]
[1725863203851,45.0,128.55,128.51,16.4132]
[1725863204051,51.2233,128.55,128.51,16.4132]
[1725863204250,45.0,128.55,128.51,16.4132]
[1725863206189,51.2234,128.55,128.51,16.4132]
[1725863212584,45.0,128.55,128.51,16.4132]
[1725863212793,45.0,128.56,128.51,16.4132]
[1725863213006,26.2218,128.58,128.51,16.4132]
[1725863213995,45.0,128.57,128.51,16.4132]
[1725863214190,20.0,128.56,128.51,16.4132]
[1725863214507,45.0,128.55,128.51,16.4132]
[1725863222796,51.2233,128.55,128.51,16.4132]
[1725863224821,6.2238,128.54,128.49,6.0566]
[1725863225024,45.0,128.53,128.49,6.0566]
[1725863225719,45.0,128.53,128.48,16.506]
[1725863228420,51.2244,128.53,128.48,16.506]
[1725863229308,45.0,128.53,128.46,6.6623]
[1725863229505,6.2256,128.51,128.46,6.6623]
[1725863229730,51.2257,128.5,128.45,15.9359]
[1725863230221,45.0,128.5,128.45,15.9359]
[1725863232419,20.0,128.49,128.45,15.9359]
[1725863232724,45.0,128.48,128.45,15.9359]
[1725863234117,51.2266,128.48,128.43,6.4824]
[1725863237832,45.0,128.48,128.43,6.4824]
[1725863253641,51.2267,128.48,128.43,6.4824]
[1725863258155,45.0,128.48,128.43,6.4824]
[1725863259253,20.0,128.49,128.43,6.4824]
[1725863259549,6.2237,128.54,128.44,16.6133]
[1725863259729,6.2228,128.56,128.46,22.8746]
[1725863262131,20.0,128.55,128.46,22.8746]
[1725863263354,45.0,128.54,128.46,22.8746]
[1725863263739,20.0,128.53,128.46,22.8746]
[1725863263952,45.0,128.52,128.46,22.8746]
[1725863272362,45.0,128.52,128.47,15.282]
[1725863272753,45.0,128.52,128.47,22.29773806]
[1725863278740,45.0,128.52,128.47,15.282]
[1725863283954,20.0,128.53,128.47,22.29773806]
[1725863284259,20.0,128.52,128.47,22.29773806]
[1725863284462,20.0,128.55,128.47,22.29773806]
[1725863284665,45.0,128.54,128.47,22.29773806]
[1725863284872,20.0,128.53,128.47,22.29773806]
[1725863285663,45.0,128.54,128.48,15.6634]
[1725863286751,45.0,128.55,128.48,15.6634]
[1725863286949,20.0,128.54,128.48,15.6634]
[1725863287254,45.0,128.53,128.48,15.6634]
[1725863287975,20.0,128.52,128.48,15.6634]
[1725863288162,45.0,128.51,128.48,15.6634]
[1725863290376,20.0,128.52,128.48,15.6634]
[1725863290563,20.0,128.54,128.48,15.6634]
[1725863290764,45.0,128.53,128.48,15.6634]
[1725863290952,20.0,128.52,128.48,15.6634]
[1725863292859,45.0,128.53,128.48,15.6634]
[1725863295483,6.2223,128.57,128.48,15.6634]
[1725863295684,65.0,128.56,128.48,15.6634]
[1725863297354,65.0,128.56,128.49,6.5141]
[1725863301578,45.0,128.56,128.5,15.904]
[1725863301765,17.29326174,128.58,128.5,22.91973806]
[1725863302855,45.0,128.57,128.5,15.904]
[1725863303063,45.0,128.58,128.5,15.904]
[1725863303260,20.0,128.57,128.5,15.904]
[1725863303460,45.0,128.56,128.5,15.904]
[1725863303677,20.0,128.55,128.5,15.904]
[1725863304467,45.0,128.56,128.5,15.904]
[1725863304681,20.0,128.55,128.5,15.904]
[1725863305053,20.0,128.56,128.5,15.904]
[1725863305258,45.0,128.55,128.5,15.904]
[1725863306890,20.0,128.56,128.5,15.904]
[1725863307185,20.0,128.58,128.5,15.904]
[1725863307373,45.0,128.57,128.5,15.904]
[1725863307685,20.0,128.56,128.5,15.904]
[1725863309392,45.0,128.57,128.5,15.904]
[1725863309683,20.0,128.56,128.5,15.904]
[1725863309880,20.0,128.57,128.5,15.904]
[1725863310083,45.0,128.56,128.5,15.904]
[1725863310876,45.0,128.56,128.51,6.1502]
[1725863311490,20.0,128.57,128.51,13.16593806]
[1725863311693,20.0,128.59,128.51,13.16593806]
[1725863311872,45.0,128.58,128.51,13.16593806]
[1725863312071,20.0,128.57,128.51,13.16593806]
[1725863316078,20.0,128.57,128.51,6.1502]
[1725863316283,45.0,128.56,128.51,6.1502]
[1725863322704,36.955879,128.56,128.51,6.1502]
[1725863331509,20.0,128.57,128.51,6.1502]
[1725863331696,20.0,128.58,128.51,6.1502]
[1725863331894,45.0,128.57,128.51,6.1502]
[1725863332096,20.0,128.56,128.51,6.1502]
[1725863334809,45.0,128.55,128.51,6.1502]
[1725863335185,20.0,128.56,128.51,6.1502]
[1725863335388,20.0,128.57,128.51,6.1502]
[1725863335622,45.0,128.56,128.51,6.1502]
[1725863336885,45.0,128.56,128.5,15.904]
[1725863337111,20.0,128.55,128.5,15.904]
[1725863337308,45.0,128.54,128.5,15.904]
[1725863361639,20.0,128.55,128.5,15.904]
[1725863361823,20.0,128.58,128.5,15.904]
[1725863362232,20.0,128.58,128.52,15.5097]
[1725863362827,23.02295246,128.6,128.52,15.5097]
[1725863364049,16.80205246,128.6,128.53,22.2533]
[1725863364230,20.0,128.59,128.53,22.2533]
[1725863364426,16.80205246,128.6,128.54,16.2014]
[1725863364654,16.80205246,128.6,128.54,17.75707928]
[1725863365432,16.80205246,128.6,128.56,6.1927]
[1725863365652,16.80205246,128.6,128.57,16.5556]
[1725863365846,0.8377086,128.62,128.57,16.5556]
[1725863366031,0.8377086,128.62,128.57,23.57133806]
[1725863367250,0.8377086,128.62,128.57,16.5556]
[1725863367462,0.8377086,128.62,128.57,23.57133806]
[1725863369054,0.8377086,128.62,128.57,16.5556]
[1725863372980,20.8377086,128.62,128.57,16.5556]
[1725863373167,45.0,128.61,128.57,16.5556]
[1725863373956,20.0,128.6,128.57,16.5556]
[1725863374282,26.2208,128.6,128.53,15.1688]
[1725863374473,45.0,128.59,128.53,15.1688]
[1725863374770,20.0,128.58,128.53,15.1688]
[1725863374953,45.0,128.57,128.53,15.1688]
[1725863382956,45.0,128.57,128.48,6.3134]
[1725863383160,20.0,128.56,128.49,15.6863]
[1725863383367,45.0,128.55,128.49,15.6863]
[1725863384265,51.2232,128.55,128.49,15.6863]
[1725863384473,20.0,128.54,128.49,15.6863]
[1725863384779,26.2238,128.54,128.49,15.6863]
[1725863384986,45.0,128.53,128.49,15.6863]
[1725863385194,20.0,128.52,128.49,15.6863]
[1725863385397,45.0,128.51,128.49,15.6863]
[1725863399509,6.2234,128.55,128.49,15.6863]
[1725863399695,20.0,128.54,128.49,15.6863]
[1725863400383,20.0,128.55,128.49,15.6863]
[1725863400995,45.0,128.54,128.49,15.6863]
[1725863401197,20.0,128.53,128.49,15.6863]
[1725863401402,45.0,128.52,128.49,15.6863]
[1725863401987,6.4333,128.57,128.49,15.6863]
[1725863402204,16.4193,128.58,128.49,15.6863]
[1725863402395,20.0,128.57,128.49,22.1067]
[1725863402790,20.0,128.59,128.5,7.01573806]
[1725863403116,6.2222,128.58,128.5,7.01573806]
[1725863403404,20.0,128.57,128.5,7.01573806]
[1725863405091,6.2214,128.59,128.5,7.01573806]
[1725863405092,20.0,128.58,128.5,7.01573806]
[1725863405486,45.0,128.57,128.5,7.01573806]
[1725863405690,20.0,128.56,128.5,7.01573806]
[1725863405918,45.0,128.55,128.5,7.01573806]
[1725863406413,44.96701164,128.55,128.5,7.01573806]
[1725863408607,21.5194,128.61,128.52,7.01573806]
[1725863408796,65.0,128.6,128.52,7.01573806]
[1725863408992,71.2209,128.6,128.52,7.01573806]
[1725863410186,6.2214,128.59,128.51,15.8858]
[1725863410385,65.0,128.58,128.51,15.8858]
[1725863411105,71.2218,128.58,128.51,15.8858]
[1725863413016,26.2218,128.58,128.51,15.8858]
[1725863414504,45.0,128.57,128.51,15.8858]
[1725863414817,20.0,128.56,128.51,22.90153806]
[1725863415000,45.0,128.55,128.51,22.90153806]
[1725863416116,15.2987,128.61,128.51,22.90153806]
[1725863416321,65.0,128.6,128.51,22.90153806]
[1725863416818,71.2209,128.6,128.51,15.8858]
[1725863417018,71.2209,128.6,128.51,22.90153806]
[1725863418192,65.0,128.6,128.51,15.8858]
[1725863418395,6.2213,128.59,128.51,15.8858]
[1725863418609,65.0,128.58,128.51,15.8858]
[1725863419417,65.0,128.58,128.51,22.90153806]
[1725863419715,71.2218,128.58,128.51,15.8858]
[1725863419916,65.0,128.58,128.51,15.8858]
[1725863422217,71.3642,128.58,128.51,15.8858]
[1725863422409,6.2238,128.54,128.48,16.0096]
[1725863422617,65.0,128.53,128.48,16.0096]
[1725863425324,20.0,128.53,128.48,16.0096]
[1725863425518,6.2227,128.57,128.48,16.0096]
[1725863426606,6.2227,128.57,128.49,7.01573806]
[1725863426808,65.0,128.56,128.49,7.01573806]
[1725863427399,65.0,128.56,128.5,6.4361]
[1725863429426,65.0,128.56,128.51,16.3768]
[1725863430125,45.0,128.56,128.51,16.3768]
[1725863431713,6.2209,128.6,128.51,23.39253806]
[1725863431913,20.0,128.59,128.51,23.39253806]
[1725863433041,45.0,128.58,128.51,23.39253806]
[1725863433226,20.0,128.57,128.51,23.39253806]
[1725863433430,45.0,128.56,128.51,23.39253806]
[1725863434833,20.0,128.59,128.51,23.39253806]
[1725863435041,45.0,128.58,128.51,23.39253806]
[1725863435216,45.0,128.59,128.51,23.39253806]
[1725863435416,20.0,128.58,128.51,23.39253806]
[1725863435637,45.0,128.57,128.51,23.39253806]
[1725863438938,20.0,128.58,128.53,7.01573806]
[1725863439244,20.0,128.6,128.53,7.01573806]
[1725863439442,45.0,128.59,128.53,7.01573806]
[1725863439622,20.0,128.58,128.53,7.01573806]
[1725863440821,45.0,128.59,128.53,7.01573806]
[1725863443654,45.0,128.59,128.54,16.1984]
[1725863444034,45.0,128.6,128.54,16.1984]
[1725863444230,20.0,128.59,128.54,16.1984]
[1725863444430,45.0,128.58,128.54,16.1984]
[1725863444837,20.0,128.59,128.54,16.1984]
[1725863445135,20.0,128.61,128.54,16.1984]
[1725863445345,45.0,128.6,128.54,16.1984]
[1725863445542,20.0,128.59,128.54,16.1984]
[1725863445851,45.0,128.58,128.54,16.1984]
[1725863451151,20.0,128.59,128.54,16.1984]
[1725863451346,20.0,128.61,128.54,22.2843]
[1725863451547,45.0,128.6,128.54,22.2843]
[1725863451748,20.0,128.59,128.54,22.2843]
[1725863457561,20.0,128.59,128.54,29.30003806]
[1725863460049,0.8377086,128.62,128.56,7.01573806]
[1725863460450,20.8377086,128.62,128.54,29.30003806]
[1725863461340,45.0,128.61,128.54,29.30003806]
[1725863461536,20.0,128.6,128.54,29.30003806]
[1725863461737,45.0,128.59,128.54,29.30003806]
[1725863462155,45.0,128.59,128.54,22.2843]
[1725863462355,45.0,128.59,128.54,29.30003806]
[1725863463345,20.0,128.6,128.54,29.30003806]
[1725863463650,20.8377086,128.62,128.54,29.30003806]